fUSD/lending_fUSD_20250204
["ID","MTS","AMOUNT","RATE_DAILY","PERIOD"]
[351672893,1738705847113,-500.0,0.00010409,2]
[351672894,1738705847123,-500.0,0.00010409,2]
[351672895,1738705847133,-681.31,0.00010409,2]
[351672896,1738705847144,-489.6,0.00010409,2]
[351672897,1738705847154,-820.778,0.00010409,2]
[351672898,1738705847164,-500.0,0.00010409,2]
[351672899,1738705847175,-500.0,0.00010409,2]
[351672900,1738705847185,-307.71,0.00010409,2]
[351672901,1738705847196,-606.54,0.00010409,2]
[351672902,1738705847206,-500.0,0.00010409,2]
[351672903,1738705847217,-500.0,0.00010409,2]
[351672904,1738705847227,-616.03,0.00010409,2]
[351672905,1738705847242,-500.0,0.00010409,2]
[351672906,1738705847253,-500.0,0.00010409,2]
[351672907,1738705847264,-500.0,0.0001041,2]
[351672908,1738705847275,-500.0,0.0001041,2]
[351672909,1738705847285,-466.68,0.0001041,2]
[351672910,1738705847296,-500.0,0.0001041,2]
[351672911,1738705847306,-500.0,0.0001041,2]
[351672912,1738705847316,-500.0,0.0001041,2]
[351672913,1738705847326,-500.0,0.0001041,2]
[351672914,1738705847336,-500.0,0.0001041,2]
[351672915,1738705847346,-500.0,0.0001041,2]
[351672916,1738705847356,-500.0,0.0001041,2]
[351672917,1738705847577,-500.0,0.0001041,2]
[351672918,1738705847597,-343.62,0.0001041,2]
[351672919,1738705847607,-464.72462195,0.0001041,2]
[351672920,1738705847617,-500.0,0.0001041,2]
[351672921,1738705847627,-500.0,0.0001041,2]
[351672922,1738705847636,-500.0,0.0001041,2]
[351672923,1738705847646,-500.0,0.0001041,2]
[351672924,1738705847656,-500.0,0.0001041,2]
[351672925,1738705847665,-500.0,0.0001041,2]
[351672926,1738705847675,-301.82,0.0001041,2]
[351672927,1738705847685,-422.6,0.0001041,2]
[351672928,1738705847694,-500.0,0.0001041,2]
[351672929,1738705847703,-204.26,0.0001041,2]
[351672930,1738705847713,-500.0,0.0001041,2]
[351672931,1738705847722,-500.0,0.0001041,2]
[351672932,1738705847735,-500.0,0.0001041,2]
[351672933,1738705847745,-500.0,0.0001041,2]
[351672934,1738705847754,-500.0,0.0001041,2]
[351672935,1738705847764,-500.0,0.0001041,2]
[351672936,1738705847773,-487.36,0.0001041,2]
[351672937,1738705847783,-500.0,0.0001041,2]
[351672938,1738705847793,-500.0,0.0001041,2]
[351672939,1738705847802,-500.0,0.0001041,2]
[351672940,1738705847812,-246.04,0.0001041,2]
[351672941,1738705847821,-500.0,0.0001041,2]
[351672942,1738705847831,-268.1,0.0001041,2]
[351672943,1738705847840,-500.0,0.0001041,2]
[351672944,1738705847850,-500.0,0.0001041,2]
[351672945,1738705847859,-500.0,0.0001041,2]
[351672946,1738705847869,-500.0,0.0001041,2]
[351672947,1738705847878,-500.0,0.0001041,2]
[351672948,1738705847888,-500.0,0.0001041,2]
[351672949,1738705847897,-500.0,0.0001041,2]
[351672950,1738705847907,-500.0,0.0001041,2]
[351672951,1738705847917,-500.0,0.0001041,2]
[351672952,1738705847927,-500.0,0.0001041,2]
[351672953,1738705847937,-329.04,0.0001041,2]
[351672954,1738705847946,-500.0,0.0001041,2]
[351672955,1738705847957,-163.45,0.0001041,2]
[351672956,1738705847967,-500.0,0.0001041,2]
[351672957,1738705847977,-500.0,0.0001041,2]
[351672958,1738705847994,-500.0,0.0001041,2]
[351672959,1738705848004,-500.0,0.0001041,2]
[351672960,1738705848014,-500.0,0.0001041,2]
[351672961,1738705848024,-500.0,0.0001041,2]
[351672962,1738705848033,-500.0,0.0001041,2]
[351672963,1738705848044,-500.0,0.0001041,2]
[351672964,1738705848054,-500.0,0.0001041,2]
[351672965,1738705848065,-500.0,0.0001041,2]
[351672966,1738705848075,-225.16,0.0001041,2]
[351672967,1738705848086,-500.0,0.0001041,2]
[351672968,1738705848098,-574.2,0.0001041,2]
[351672969,1738705848108,-500.0,0.0001041,2]
[351672970,1738705848118,-500.0,0.0001041,2]
[351672971,1738705848128,-500.0,0.0001041,2]
[351672972,1738705848138,-500.0,0.0001041,2]
[351672973,1738705848148,-500.0,0.0001041,2]
[351672974,1738705848158,-500.0,0.0001041,2]
[351672975,1738705848167,-500.0,0.0001041,2]
[351672976,1738705848177,-500.0,0.0001041,2]
[351672977,1738705848186,-500.0,0.0001041,2]
[351672978,1738705848196,-237.52,0.0001041,2]
[351672979,1738705848206,-500.0,0.0001041,2]
[351672980,1738705848215,-500.0,0.0001041,2]
[351672981,1738705848225,-431.43955898,0.00010415,2]
[351672982,1738705848238,-500.0,0.00010437,2]
[351672983,1738705848247,-612.02,0.0001044,2]
[351672984,1738705848257,-1059.0,0.00010447,2]
[351672985,1738705848267,-300.89089682,0.00010478,2]
[351672986,1738705848276,-500.0,0.00010513,2]
[351672987,1738705848286,-163.66351274,0.00010531,2]
[351672988,1738705848296,-634.3,0.00010545,2]
[351672989,1738705848306,-555.56,0.00010545,2]
[351672990,1738705848316,-500.0,0.00010545,2]
[351672991,1738705848326,-363.74,0.00010545,2]
[351672992,1738705848336,-366.15,0.00010545,2]
[351672993,1738705848346,-500.0,0.00010545,2]
[351672994,1738705848356,-515.79,0.00010545,2]
[351672995,1738705848366,-727.623884,0.00010545,2]
[351672996,1738705848375,-500.0,0.00010545,2]
[351672997,1738705848385,-500.0,0.00010545,2]
[351672998,1738705848395,-500.0,0.00010545,2]
[351672999,1738705848404,-500.0,0.00010545,2]
[351673000,1738705848414,-500.0,0.00010545,2]
[351673001,1738705848424,-500.0,0.00010545,2]
[351673002,1738705848433,-500.0,0.00010545,2]
[351673003,1738705848443,-500.0,0.00010545,2]
[351673004,1738705848453,-593.33,0.00010545,2]
[351673005,1738705848463,-517.26,0.00010545,2]
[351673006,1738705848472,-1812.77,0.00010545,2]
[351673007,1738705848483,-491.78,0.00010545,2]
[351673008,1738705848492,-500.0,0.00010545,2]
[351673009,1738705848501,-500.0,0.00010545,2]
[351673010,1738705848511,-1149.49,0.00010545,2]
[351673011,1738705848521,-538.77,0.00010545,2]
[351673012,1738705848531,-500.0,0.00010545,2]
[351673013,1738705848541,-575.39,0.00010545,2]
[351673014,1738705848553,-500.0,0.00010545,2]
[351673015,1738705848563,-649.05,0.00010545,2]
[351673016,1738705848572,-500.0,0.00010545,2]
[351673017,1738705848582,-500.0,0.00010545,2]
[351673018,1738705848591,-500.0,0.00010545,2]
[351673019,1738705848601,-500.0,0.00010545,2]
[351673020,1738705848610,-500.0,0.00010545,2]
[351673021,1738705848620,-500.0,0.00010545,2]
[351673022,1738705848630,-313.62,0.00010545,2]
[351673023,1738705848640,-500.0,0.00010545,2]
[351673024,1738705848649,-500.0,0.00010545,2]
[351673025,1738705848658,-534.21,0.00010545,2]
[351673026,1738705848668,-500.0,0.00010545,2]
[351673027,1738705848678,-500.0,0.00010545,2]
[351673028,1738705848687,-500.0,0.00010545,2]
[351673029,1738705848696,-500.0,0.00010545,2]
[351673030,1738705848705,-747.02,0.00010545,2]
[351673031,1738705848715,-500.0,0.00010545,2]
[351673032,1738705848725,-376.51,0.00010545,2]
[351673033,1738705848737,-374.16,0.00010545,2]
[351673034,1738705848746,-500.0,0.00010545,2]
[351673035,1738705848756,-576.13,0.00010545,2]
[351673036,1738705848766,-500.0,0.00010545,2]
[351673037,1738705848776,-500.0,0.00010545,2]
[351673038,1738705848785,-766.33,0.00010545,2]
[351673039,1738705848795,-500.0,0.00010545,2]
[351673040,1738705848805,-579.92,0.00010545,2]
[351673041,1738705848814,-843.92,0.00010545,2]
[351673042,1738705848824,-500.0,0.00010545,2]
[351673043,1738705848833,-210.1,0.00010545,2]
[351673044,1738705848843,-500.0,0.00010545,2]
[351673045,1738705848852,-581.17,0.00010545,2]
[351673046,1738705848862,-500.0,0.00010545,2]
[351673047,1738705848872,-500.0,0.00010545,2]
[351673048,1738705848881,-500.0,0.00010546,2]
[351673049,1738705848892,-500.0,0.00010546,2]
[351673050,1738705848901,-500.0,0.00010546,2]
[351673051,1738705848911,-500.0,0.00010546,2]
[351673052,1738705848921,-500.0,0.00010546,2]
[351673053,1738705848931,-500.0,0.00010546,2]
[351673054,1738705848940,-385.66,0.00010546,2]
[351673055,1738705848950,-500.0,0.00010546,2]
[351673056,1738705848960,-500.0,0.00010546,2]
[351673057,1738705848970,-500.0,0.00010546,2]
[351673058,1738705848979,-441.87,0.00010546,2]
[351673059,1738705848991,-500.0,0.00010546,2]
[351673060,1738705849001,-500.0,0.00010546,2]
[351673061,1738705849011,-500.0,0.00010546,2]
[351673062,1738705849020,-500.0,0.00010546,2]
[351673063,1738705849031,-500.0,0.00010546,2]
[351673064,1738705849041,-500.0,0.00010546,2]
[351673065,1738705849050,-500.0,0.00010546,2]
[351673066,1738705849061,-500.0,0.00010546,2]
[351673067,1738705849071,-500.0,0.00010546,2]
[351673068,1738705849081,-500.0,0.00010546,2]
[351673069,1738705849092,-163.41,0.00010546,2]
[351673070,1738705849101,-500.0,0.00010546,2]
[351673071,1738705849111,-500.0,0.00010546,2]
[351673072,1738705849120,-500.0,0.00010546,2]
[351673073,1738705849130,-500.0,0.00010546,2]
[351673074,1738705849140,-500.0,0.00010546,2]
[351673075,1738705849149,-500.0,0.00010546,2]
[351673076,1738705849158,-500.0,0.00010546,2]
[351673077,1738705849168,-500.0,0.00010546,2]
[351673078,1738705849178,-500.0,0.00010546,2]
[351673079,1738705849188,-500.0,0.00010546,2]
[351673080,1738705849198,-500.0,0.00010546,2]
[351673081,1738705849208,-500.0,0.00010546,2]
[351673082,1738705849217,-1004.22204505,0.00010546,2]
[351673083,1738705849236,-570.37795495,0.00010546,2]
[351673084,1738705849246,-500.0,0.00010546,2]
[351673085,1738705849256,-500.0,0.00010546,2]
[351673086,1738705849266,-500.0,0.00010546,2]
[351673087,1738705849276,-500.0,0.00010546,2]
[351673088,1738705849285,-471.2,0.00010546,2]
[351673089,1738705849295,-980.4,0.00010546,2]
[351673090,1738705849305,-551.07690105,0.00010546,2]
[351673091,1738705849314,-343.67,0.00010546,2]
[351673092,1738705849324,-500.0,0.00010546,2]
[351673093,1738705849333,-500.0,0.00010546,2]
[351673094,1738705849342,-500.0,0.00010546,2]
[351673095,1738705849352,-164.81,0.00010546,2]
[351673096,1738705849362,-500.0,0.00010546,2]
[351673097,1738705849371,-500.0,0.00010546,2]
[351673098,1738705849381,-500.0,0.00010546,2]
[351673099,1738705849390,-206.01413748,0.00010546,2]
[351673100,1738705849402,-293.98586252,0.00010546,2]
[351673101,1738705849411,-500.0,0.00010546,2]
[351673102,1738705849421,-500.0,0.00010546,2]
[351673103,1738705849431,-150.62899846,0.00010546,2]
[351673104,1738705849440,-784.09,0.00010546,2]
[351673105,1738705849452,-2180.15,0.00010546,2]
[351673106,1738705849461,-500.0,0.00010546,2]
[351673107,1738705849471,-500.0,0.00010546,2]
[351673108,1738705849482,-335.95,0.00010546,2]
[351673109,1738705849492,-357.45,0.00010546,2]
[351673110,1738705849501,-500.0,0.00010546,2]
[351673111,1738705849510,-90.65629211,0.00010546,2]
[351673112,1738705849522,-409.34370789,0.00010546,2]
[351673113,1738705849533,-500.0,0.00010546,2]
[351673114,1738705849543,-500.0,0.00010546,2]
[351673115,1738705849553,-500.0,0.00010546,2]
[351673116,1738705849562,-500.0,0.00010546,2]
[351673117,1738705849571,-500.0,0.00010546,2]
[351673118,1738705849582,-500.0,0.00010546,2]
[351673119,1738705849592,-500.0,0.00010546,2]
[351673120,1738705849602,-500.0,0.00010546,2]
[351673121,1738705849611,-681.31,0.00010546,2]
[351673122,1738705849621,-500.0,0.00010546,2]
[351673123,1738705849631,-500.0,0.00010546,2]
[351673124,1738705849642,-500.0,0.00010546,2]
[351673125,1738705849652,-500.0,0.00010546,2]
[351673126,1738705849662,-551.64,0.00010546,2]
[351673127,1738705849671,-500.0,0.00010546,2]
[351673128,1738705849681,-500.0,0.00010547,2]
[351673129,1738705849691,-500.0,0.00010547,2]
[351673130,1738705849702,-500.0,0.00010547,2]
[351673131,1738705849711,-74.38291371,0.00010547,2]
[351673132,1738705849723,-317.64352036,0.00010547,2]
[351673133,1738705849735,-61.43356593,0.00010547,2]
[351673134,1738705849745,-500.0,0.00010547,2]
[351673135,1738705849755,-500.0,0.00010547,2]
[351673136,1738705849764,-500.0,0.00010547,2]
[351673137,1738705849774,-124.12495579,0.00010547,2]
[351673138,1738705849786,-375.87504421,0.00010547,2]
[351673139,1738705849795,-226.68,0.00010547,2]
[351673140,1738705849805,-508.12,0.00010547,2]
[351673141,1738705849814,-500.0,0.00010547,2]
[351673142,1738705849824,-500.0,0.00010547,2]
[351673143,1738705849833,-243.26,0.00010547,2]
[351673144,1738705849842,-545.04,0.00010547,2]
[351673145,1738705849852,-500.0,0.00010547,2]
[351673146,1738705849861,-549.19,0.00010547,2]
[351673147,1738705849871,-500.0,0.00010547,2]
[351673148,1738705849881,-500.0,0.00010547,2]
[351673149,1738705849891,-500.0,0.00010547,2]
[351673150,1738705849900,-500.0,0.00010547,2]
[351673151,1738705849911,-259.76,0.00010547,2]
[351673152,1738705849920,-191.75651735,0.00010547,2]
[351673153,1738705849932,-308.24348265,0.00010547,2]
[351673154,1738705849942,-500.0,0.00010547,2]
[351673155,1738705849951,-47.24788202,0.00010547,2]
[351673156,1738705849964,-452.75211798,0.00010547,2]
[351673157,1738705849976,-244.32,0.00010547,2]
[351673158,1738705849993,-11.34510404,0.00010547,2]
[351673159,1738705850007,-180.27489596,0.00010547,2]
[351673160,1738705850019,-336.64,0.00010547,2]
[351673161,1738705850030,-500.0,0.00010547,2]
[351673162,1738705850042,-500.0,0.00010547,2]
[351673163,1738705850053,-500.0,0.00010547,2]
[351673164,1738705850066,-530.86,0.00010547,2]
[351673165,1738705850078,-408.12,0.00010547,2]
[351673166,1738705850089,-256.95854533,0.00010547,2]
[351673167,1738705850104,-318.42145467,0.00010547,2]
[351673168,1738705850115,-124.07436411,0.00010547,2]
[351673169,1738705850130,-375.92563589,0.00010547,2]
[351673170,1738705850142,-500.0,0.00010547,2]
[351673171,1738705850153,-229.76,0.00010547,2]
[351673172,1738705850164,-525.02,0.00010547,2]
[351673173,1738705850175,-500.0,0.00010547,2]
[351673174,1738705850186,-500.0,0.00010547,2]
[351673175,1738705850197,-500.0,0.00010547,2]
[351673176,1738705850210,-500.0,0.00010547,2]
[351673177,1738705850222,-500.0,0.00010547,2]
[351673178,1738705850236,-500.0,0.00010547,2]
[351673179,1738705850249,-459.72,0.00010547,2]
[351673180,1738705850261,-500.0,0.00010547,2]
[351673181,1738705850275,-500.0,0.00010547,2]
[351673182,1738705850287,-500.0,0.00010547,2]
[351673183,1738705850302,-500.0,0.00010547,2]
[351673184,1738705850316,-451.94,0.00010547,2]
[351673185,1738705850329,-500.0,0.00010547,2]
[351673186,1738705850342,-609.29174288,0.00010547,2]
[351673187,1738705850353,-500.0,0.00010547,2]
[351673188,1738705850365,-500.0,0.00010547,2]
[351673189,1738705850378,-500.0,0.00010547,2]
[351673190,1738705850390,-505.1,0.00010547,2]
[351673191,1738705850402,-500.0,0.00010547,2]
[351673192,1738705850414,-500.0,0.00010547,2]
[351673193,1738705850425,-500.0,0.00010547,2]
[351673194,1738705850437,-500.0,0.00010547,2]
[351673195,1738705850447,-457.02,0.00010547,2]
[351673196,1738705850459,-281.24405436,0.00010584,2]
[351673197,1738705850469,-300.89089682,0.00010632,2]
[351673198,1738705850480,-184.75,0.00010634,2]
[351673199,1738705850495,-1000.0,0.00010666,2]
[351673200,1738705850507,-243.48,0.00010682,2]
[351673201,1738705850519,-500.0,0.00010682,2]
[351673202,1738705850530,-727.623884,0.00010682,2]
[351673203,1738705850542,-300.07,0.00010682,2]
[351673204,1738705850556,-500.0,0.00010682,2]
[351673205,1738705850566,-500.0,0.00010682,2]
[351673206,1738705850578,-251.38,0.00010682,2]
[351673207,1738705850590,-500.0,0.00010682,2]
[351673208,1738705850600,-500.0,0.00010682,2]
[351673209,1738705850613,-500.0,0.00010682,2]
[351673210,1738705850627,-500.0,0.00010682,2]
[351673211,1738705850638,-593.33,0.00010682,2]
[351673212,1738705850648,-517.26,0.00010682,2]
[351673213,1738705850658,-1812.77,0.00010682,2]
[351673214,1738705850668,-500.0,0.00010682,2]
[351673215,1738705850678,-500.0,0.00010682,2]
[351673216,1738705850689,-1149.49,0.00010682,2]
[351673217,1738705850700,-538.77,0.00010682,2]
[351673218,1738705850713,-500.0,0.00010682,2]
[351673219,1738705850725,-575.39,0.00010682,2]
[351673220,1738705850738,-500.0,0.00010682,2]
[351673221,1738705850748,-500.0,0.00010682,2]
[351673222,1738705850758,-500.0,0.00010682,2]
[351673223,1738705850769,-500.0,0.00010682,2]
[351673224,1738705850779,-500.0,0.00010682,2]
[351673225,1738705850789,-500.0,0.00010682,2]
[351673226,1738705850801,-500.0,0.00010682,2]
[351673227,1738705850811,-306.59,0.00010682,2]
[351673228,1738705850825,-500.0,0.00010682,2]
[351673229,1738705850835,-534.21,0.00010682,2]
[351673230,1738705850846,-500.0,0.00010682,2]
[351673231,1738705850856,-444.4,0.00010682,2]
[351673232,1738705850867,-500.0,0.00010682,2]
[351673233,1738705850878,-225.88,0.00010682,2]
[351673234,1738705850891,-747.02,0.00010682,2]
[351673235,1738705850901,-500.0,0.00010682,2]
[351673236,1738705850912,-500.0,0.00010682,2]
[351673237,1738705850923,-576.13,0.00010682,2]
[351673238,1738705850934,-500.0,0.00010682,2]
[351673239,1738705850945,-500.0,0.00010682,2]
[351673240,1738705850955,-766.33,0.00010682,2]
[351673241,1738705850966,-428.32,0.00010682,2]
[351673242,1738705850977,-579.92,0.00010682,2]
[351673243,1738705850991,-843.92,0.00010682,2]
[351673244,1738705851002,-500.0,0.00010682,2]
[351673245,1738705851014,-500.0,0.00010682,2]
[351673246,1738705851024,-581.17,0.00010682,2]
[351673247,1738705851036,-500.0,0.00010682,2]
[351673248,1738705851047,-500.0,0.00010683,2]
[351673249,1738705851057,-500.0,0.00010683,2]
[351673250,1738705851068,-500.0,0.00010683,2]
[351673251,1738705851078,-500.0,0.00010683,2]
[351673252,1738705851089,-500.0,0.00010683,2]
[351673253,1738705851099,-364.63,0.00010683,2]
[351673254,1738705851110,-500.0,0.00010683,2]
[351673255,1738705851122,-500.0,0.00010683,2]
[351673256,1738705851132,-500.0,0.00010683,2]
[351673257,1738705851143,-500.0,0.00010683,2]
[351673258,1738705851154,-500.0,0.00010683,2]
[351673259,1738705851165,-500.0,0.00010683,2]
[351673260,1738705851176,-520.08,0.00010683,2]
[351673261,1738705851188,-500.0,0.00010683,2]
[351673262,1738705851199,-491.17378605,0.00010683,2]
[351673263,1738705851466,-8.82621395,0.00010683,2]
[351673264,1738705851477,-500.0,0.00010683,2]
[351673265,1738705851488,-500.0,0.00010683,2]
[351673266,1738705851499,-500.0,0.00010683,2]
[351673267,1738705851510,-500.0,0.00010683,2]
[351673268,1738705851521,-500.0,0.00010683,2]
[351673269,1738705851532,-338.55227846,0.00010683,2]
[351673270,1738705851546,-161.44772154,0.00010683,2]
[351673271,1738705851557,-500.0,0.00010683,2]
[351673272,1738705851568,-170.62219405,0.00010683,2]
[351673273,1738705851583,-329.37780595,0.00010683,2]
[351673274,1738705851595,-458.53018997,0.00010683,2]
[351673275,1738705851610,-41.46981003,0.00010683,2]
[351673276,1738705851621,-537.15185813,0.00010683,2]
[351673277,1738705851632,-500.0,0.00010683,2]
[351673278,1738705851643,-500.0,0.00010683,2]
[351673279,1738705851654,-500.0,0.00010683,2]
[351673280,1738705851664,-500.0,0.00010683,2]
[351673281,1738705851675,-492.07971334,0.00010683,2]
[351673282,1738705851688,-7.92028666,0.00010683,2]
[351673283,1738705851700,-321.61441364,0.00010683,2]
[351673284,1738705851713,-969.825,0.00010683,2]
[351673285,1738705851726,-283.16058636,0.00010683,2]
[351673286,1738705851736,-500.0,0.00010683,2]
[351673287,1738705851747,-500.0,0.00010683,2]
[351673288,1738705851757,-423.23066338,0.00010683,2]
[351673289,1738705851768,-500.0,0.00010683,2]
[351673290,1738705851778,-980.4,0.00010683,2]
[351673291,1738705851789,-500.0,0.00010683,2]
[351673292,1738705851799,-595.58,0.00010683,2]
[351673293,1738705851809,-312.47,0.00010683,2]
[351673294,1738705851820,-500.0,0.00010683,2]
[351673295,1738705851830,-500.0,0.00010683,2]
[351673296,1738705851841,-500.0,0.00010683,2]
[351673297,1738705851852,-500.0,0.00010683,2]
[351673298,1738705851863,-500.0,0.00010683,2]
[351673299,1738705851873,-500.0,0.00010683,2]
[351673300,1738705851884,-784.09,0.00010683,2]
[351673301,1738705851895,-2180.15,0.00010683,2]
[351673302,1738705851904,-500.0,0.00010683,2]
[351673303,1738705851913,-500.0,0.00010683,2]
[351673304,1738705851923,-500.0,0.00010683,2]
[351673305,1738705851932,-500.0,0.00010683,2]
[351673306,1738705851941,-500.0,0.00010683,2]
[351673307,1738705851950,-500.0,0.00010683,2]
[351673308,1738705851960,-500.0,0.00010683,2]
[351673309,1738705851969,-500.0,0.00010683,2]
[351673310,1738705851979,-500.0,0.00010683,2]
[351673311,1738705851991,-500.0,0.00010683,2]
[351673312,1738705852000,-500.0,0.00010683,2]
[351673313,1738705852010,-599.48573489,0.00010683,2]
[351673314,1738705852019,-681.31,0.00010683,2]
[351673315,1738705852030,-500.0,0.00010683,2]
[351673316,1738705852040,-500.0,0.00010683,2]
[351673317,1738705852051,-500.0,0.00010683,2]
[351673318,1738705852062,-482.62,0.00010683,2]
[351673319,1738705852072,-500.0,0.00010683,2]
[351673320,1738705852081,-500.0,0.00010684,2]
[351673321,1738705852092,-500.0,0.00010684,2]
[351673322,1738705852102,-521.9,0.00010684,2]
[351673323,1738705852112,-500.0,0.00010684,2]
[351673324,1738705852123,-500.0,0.00010684,2]
[351673325,1738705852133,-500.0,0.00010684,2]
[351673326,1738705852142,-500.0,0.00010684,2]
[351673327,1738705852151,-500.0,0.00010684,2]
[351673328,1738705852161,-621.52,0.00010684,2]
[351673329,1738705852170,-500.0,0.00010684,2]
[351673330,1738705852180,-500.0,0.00010684,2]
[351673331,1738705852190,-500.0,0.00010684,2]
[351673332,1738705852200,-500.0,0.00010684,2]
[351673333,1738705852211,-500.0,0.00010684,2]
[351673334,1738705852220,-500.0,0.00010684,2]
[351673335,1738705852231,-500.0,0.00010684,2]
[351673336,1738705852246,-500.0,0.00010684,2]
[351673337,1738705852256,-500.0,0.00010684,2]
[351673338,1738705852265,-500.0,0.00010684,2]
[351673339,1738705852614,-428.96,0.00010684,2]
[351673340,1738705852636,-500.0,0.00010684,2]
[351673341,1738705852649,-500.0,0.00010684,2]
[351673342,1738705852659,-500.0,0.00010684,2]
[351673343,1738705852669,-500.0,0.00010684,2]
[351673344,1738705852678,-500.0,0.00010684,2]
[351673345,1738705852688,-246.18,0.00010684,2]
[351673346,1738705852698,-284.78,0.00010684,2]
[351673347,1738705852707,-500.0,0.00010684,2]
[351673348,1738705852717,-500.0,0.00010684,2]
[351673349,1738705852726,-500.0,0.00010684,2]
[351673350,1738705852736,-500.0,0.00010684,2]
[351673351,1738705852746,-500.0,0.00010684,2]
[351673352,1738705852755,-500.0,0.00010684,2]
[351673353,1738705852764,-500.0,0.00010684,2]
[351673354,1738705852774,-500.0,0.00010684,2]
[351673355,1738705852783,-410.08,0.00010684,2]
[351673356,1738705852792,-159.52,0.00010684,2]
[351673357,1738705852802,-255.84,0.00010684,2]
[351673358,1738705852810,-429.06,0.00010684,2]
[351673359,1738705852820,-500.0,0.00010684,2]
[351673360,1738705852830,-674.73266379,0.00010758,2]
[351673361,1738705852843,-456.24524398,0.00010758,2]
[351673362,1738705852853,-300.89089682,0.00010786,2]
[351673363,1738705852862,-500.0,0.00010819,2]
[351673364,1738705852872,-500.0,0.00010819,2]
[351673365,1738705852881,-500.0,0.00010819,2]
[351673366,1738705852891,-500.0,0.00010819,2]
[351673367,1738705852901,-500.0,0.00010819,2]
[351673368,1738705852911,-500.0,0.00010819,2]
[351673369,1738705852921,-500.0,0.00010819,2]
[351673370,1738705852931,-593.33,0.00010819,2]
[351673371,1738705852941,-517.26,0.00010819,2]
[351673372,1738705852951,-1812.77,0.00010819,2]
[351673373,1738705852961,-500.0,0.00010819,2]
[351673374,1738705852976,-343.19,0.00010819,2]
[351673375,1738705852987,-1149.49,0.00010819,2]
[351673376,1738705852997,-538.77,0.00010819,2]
[351673377,1738705853008,-500.0,0.00010819,2]
[351673378,1738705853018,-575.39,0.00010819,2]
[351673379,1738705853028,-500.0,0.00010819,2]
[351673380,1738705853039,-463.56,0.00010819,2]
[351673381,1738705853050,-500.0,0.00010819,2]
[351673382,1738705853059,-500.0,0.00010819,2]
[351673383,1738705853069,-500.0,0.00010819,2]
[351673384,1738705853079,-500.0,0.00010819,2]
[351673385,1738705853089,-500.0,0.00010819,2]
[351673386,1738705853100,-500.0,0.00010819,2]
[351673387,1738705853110,-534.21,0.00010819,2]
[351673388,1738705853120,-500.0,0.00010819,2]
[351673389,1738705853130,-500.0,0.00010819,2]
[351673390,1738705853140,-747.02,0.00010819,2]
[351673391,1738705853150,-500.0,0.00010819,2]
[351673392,1738705853160,-500.0,0.00010819,2]